bitfinex-derivatives/quotes_BTCF0:USTF0_20251009
["timestamp","ask_amount","ask_price","bid_price","bid_amount"]
[1759983774612,0.0952197,122300.0,122290.0,0.0817564]
[1759983774806,0.0952197,122300.0,122290.0,2.02065256]
[1759983775411,0.01347,122300.0,122290.0,2.02065256]
[1759983775614,0.01347,122300.0,122290.0,1.28089256]
[1759983775807,0.0952197,122300.0,122290.0,1.28089256]
[1759983776012,0.0982197,122300.0,122290.0,2.02065256]
[1759983776316,0.01647,122300.0,122290.0,1.28089256]
[1759983776515,0.01647,122300.0,122290.0,2.02061256]
[1759983777115,0.01647,122300.0,122290.0,2.00199731]
[1759983777619,0.003,122300.0,122290.0,1.50104539]
[1759983777916,0.003,122300.0,122290.0,1.84227543]
[1759983778415,0.003,122300.0,122290.0,1.10255543]
[1759983778618,0.0952137,122310.0,122300.0,0.0817497]
[1759983778806,0.0952137,122310.0,122300.0,0.76036398]
[1759983780619,0.0952137,122310.0,122300.0,2.80288398]
[1759983780919,0.0952137,122310.0,122300.0,3.54256398]
[1759983781311,0.0952137,122310.0,122300.0,0.76036398]
[1759983781513,0.0952137,122310.0,122300.0,3.54252398]
[1759983781914,0.0962137,122310.0,122300.0,3.54252398]
[1759983782114,0.0962137,122310.0,122300.0,2.80284398]
[1759983782315,0.0962137,122310.0,122300.0,3.54252398]
[1759983782508,0.0962137,122310.0,122300.0,3.2247097]
[1759983782716,0.0962137,122310.0,122300.0,3.54252398]
[1759983782917,0.0962137,122310.0,122300.0,3.54248398]
[1759983783422,0.0962137,122310.0,122300.0,3.60673953]
[1759983784323,0.0962137,122310.0,122300.0,0.82461953]
[1759983784524,0.0962137,122310.0,122300.0,3.60669953]
[1759983784821,0.0962137,122310.0,122300.0,3.60665953]
[1759983786315,0.0962137,122310.0,122300.0,2.86701953]
[1759983786625,0.11474069,122310.0,122300.0,3.60665953]
[1759983787123,0.11474069,122310.0,122300.0,2.86701953]
[1759983787324,0.11474069,122310.0,122300.0,3.60665953]
[1759983787621,0.01447,122310.0,122300.0,2.86701953]
[1759983787817,0.01447,122310.0,122300.0,3.60661953]
[1759983788218,0.01952568,122310.0,122300.0,2.86701953]
[1759983788421,0.01952568,122310.0,122300.0,3.60661953]
[1759983789329,0.01361,122310.0,122300.0,3.60661953]
[1759983790326,0.01361,122310.0,122300.0,2.86701953]
[1759983790525,0.01361,122310.0,122300.0,3.60661953]
[1759983795531,0.001,122310.0,122300.0,3.92443381]
[1759983795827,0.00782793,122320.0,122310.0,0.081743]
[1759983796027,0.00782793,122320.0,122310.0,1.05955987]
[1759983796331,0.00782793,122320.0,122310.0,1.45955987]
[1759983796531,0.00782793,122320.0,122310.0,2.19911987]
[1759983797333,0.00982793,122320.0,122310.0,2.19911987]
[1759983797527,0.0945259,122340.0,122330.0,0.0817297]
[1759983797732,0.11294097,122340.0,122330.0,1.86070398]
[1759983799135,0.11394097,122340.0,122330.0,1.86070398]
[1759983799931,0.11394097,122340.0,122330.0,1.86898437]
[1759983800132,0.11394097,122340.0,122330.0,1.12942437]
[1759983800331,0.0955259,122340.0,122330.0,3.91102437]
[1759983800831,0.11393417,122340.0,122330.0,3.91102437]
[1759983801033,0.11393417,122340.0,122330.0,1.04769467]
[1759983801232,0.0955259,122340.0,122330.0,3.82925467]
[1759983801538,0.0955259,122340.0,122330.0,3.91098437]
[1759983802038,0.11393344,122340.0,122330.0,3.91098437]
[1759983802227,0.13645344,122340.0,122330.0,3.59313009]
[1759983802427,0.13645344,122340.0,122330.0,3.91094437]
[1759983802633,0.13645344,122340.0,122330.0,3.91090437]
[1759983803526,0.11393344,122340.0,122330.0,3.91090437]
[1759983803725,0.11393344,122340.0,122330.0,3.91086437]
[1759983804037,0.11393344,122340.0,122330.0,1.12942437]
[1759983804237,0.11393344,122340.0,122330.0,3.17138437]
[1759983804432,0.11393344,122340.0,122330.0,3.91086437]
[1759983804433,0.03220754,122340.0,122330.0,3.91086437]
[1759983804633,0.03220754,122340.0,122330.0,3.17138437]
[1759983804834,0.11393054,122340.0,122330.0,3.91086437]
[1759983805328,0.11393054,122340.0,122330.0,0.81161009]
[1759983805531,0.11393054,122340.0,122330.0,3.59301009]
[1759983805731,0.11393054,122340.0,122330.0,3.91082437]
[1759983808140,0.13645054,122340.0,122330.0,3.91074437]
[1759983808441,0.11393054,122340.0,122330.0,3.91074437]
[1759983809036,0.11393054,122340.0,122330.0,3.17130437]
[1759983809246,0.11393054,122340.0,122330.0,3.91074437]
[1759983811542,0.11393054,122340.0,122330.0,3.08949467]
[1759983811842,0.11393054,122340.0,122330.0,3.91062437]
[1759983814641,0.03220754,122340.0,122330.0,3.15261502]
[1759983814941,0.03220754,122340.0,122330.0,4.29201502]
[1759983814942,0.01940754,122340.0,122330.0,4.29201502]
[1759983815847,0.01940754,122340.0,122330.0,3.55261502]
[1759983816039,0.01940754,122340.0,122330.0,4.29201502]
[1759983817646,0.01940754,122340.0,122330.0,4.29193502]
[1759983819241,0.001,122340.0,122330.0,4.29193502]
[1759983820342,0.001,122340.0,122330.0,3.89193502]
[1759983820543,0.001,122340.0,122330.0,3.15253502]
[1759983820740,0.001,122340.0,122330.0,3.89189502]
[1759983821652,0.001,122340.0,122330.0,3.15253502]
[1759983821853,0.001,122340.0,122330.0,3.89189502]
[1759983822349,0.01261,122350.0,122330.0,3.8703493]
[1759983822550,0.01261,122350.0,122340.0,1.81751156]
[1759983822751,0.01261,122350.0,122340.0,1.79890505]
[1759983823443,0.01461,122350.0,122340.0,1.79890505]
[1759983824152,0.01261,122350.0,122340.0,1.79890505]
[1759983825046,0.01261,122360.0,122340.0,1.05954505]
[1759983825252,0.094313,122370.0,122360.0,0.0817096]
[1759983825453,0.094313,122370.0,122360.0,3.85905816]
[1759983825760,0.094313,122370.0,122360.0,0.99642856]
[1759983825954,0.094313,122370.0,122360.0,3.84189285]
[1759983826351,0.094313,122370.0,122360.0,3.92360245]
[1759983826651,0.094313,122370.0,122360.0,1.14268245]
[1759983826851,0.116053,122370.0,122360.0,0.42534429]
[1759983827047,0.516053,122370.0,122360.0,2.78471857]
[1759983827253,0.517053,122370.0,122360.0,3.52403857]
[1759983827453,0.517053,122370.0,122360.0,0.74315857]
[1759983827751,0.517053,122370.0,122360.0,3.52395857]
[1759983828648,0.517053,122370.0,122360.0,3.84173285]
[1759983829754,0.517053,122370.0,122360.0,0.42534429]
[1759983829959,0.517053,122370.0,122360.0,3.84169285]
[1759983830259,0.517053,122370.0,122360.0,3.52387857]
[1759983832355,0.517053,122370.0,122360.0,3.52375857]
[1759983832859,0.517053,122370.0,122360.0,3.50515281]
[1759983833060,0.517053,122370.0,122360.0,3.44060852]
[1759983833859,0.517053,122370.0,122360.0,2.38351424]
[1759983834059,0.517053,122370.0,122360.0,3.12271424]
[1759983834259,0.517053,122370.0,122360.0,0.34219424]
[1759983834561,0.517053,122370.0,122360.0,1.08143424]
[1759983834960,0.1168296,122360.0,122350.0,2.71993428]
[1759983835161,0.1168296,122360.0,122350.0,3.1414]
[1759983835462,0.1168296,122360.0,122350.0,3.45921428]
[1759983835463,0.5168296,122360.0,122350.0,3.45921428]
[1759983836160,0.5178296,122360.0,122350.0,3.45921428]
[1759983836865,0.5178296,122360.0,122350.0,3.1414]
[1759983837163,0.53615594,122360.0,122350.0,3.1414]
[1759983837365,0.53615594,122360.0,122350.0,3.45921428]
[1759983838059,0.53615594,122360.0,122350.0,3.1414]
[1759983838267,0.53615594,122360.0,122350.0,3.45921428]
[1759983839160,0.1168363,122350.0,122340.0,2.4022]
[1759983839464,0.13516264,122350.0,122340.0,3.14144]
[1759983839863,0.13516264,122350.0,122340.0,3.37976354]
[1759983839864,0.37348618,122350.0,122340.0,3.37976354]
[1759983840063,0.77348618,122350.0,122340.0,0.59912354]
[1759983840260,0.77348618,122350.0,122340.0,0.3608]
[1759983840457,0.1168564,122320.0,122310.0,2.34490877]
[1759983840660,0.081743,122310.0,122300.0,0.3608]
[1759983840858,0.116863,122310.0,122300.0,3.61852708]
[1759983841468,0.116863,122310.0,122300.0,2.87888708]
[1759983841670,0.116863,122310.0,122300.0,3.61856708]
[1759983842062,0.116863,122310.0,122300.0,3.62220708]
[1759983842566,0.116863,122310.0,122300.0,3.63041097]
[1759983842763,0.116863,122310.0,122300.0,3.63241097]
[1759983844368,0.116863,122310.0,122300.0,3.697085]
[1759983844770,0.116863,122310.0,122300.0,3.7788347]
[1759983846773,0.116863,122310.0,122300.0,3.71416067]
[1759983846967,0.116863,122310.0,122300.0,2.97384067]
[1759983847273,0.116863,122310.0,122300.0,3.71412067]
[1759983847472,0.116863,122310.0,122300.0,0.93240067]
[1759983847771,0.116863,122310.0,122300.0,3.71440067]
[1759983847969,0.116863,122310.0,122300.0,2.97416067]
[1759983848172,0.116863,122310.0,122300.0,3.71440067]
[1759983848869,0.116863,122310.0,122300.0,3.78105592]
[1759983850174,0.01338,122310.0,122300.0,3.30436884]
[1759983850371,0.01338,122320.0,122310.0,0.081743]
[1759983850574,0.01338,122320.0,122310.0,0.91919008]
[1759983851577,0.01338,122320.0,122310.0,1.66187008]
[1759983851967,0.0951164,122320.0,122310.0,0.92119008]
[1759983852567,0.0951164,122320.0,122310.0,1.66383008]
[1759983852870,0.0951164,122320.0,122310.0,1.66183008]
[1759983853070,0.0951164,122320.0,122310.0,1.66483008]
[1759983853870,0.0951164,122320.0,122310.0,0.92419008]
[1759983854172,0.1183164,122320.0,122310.0,3.14828]
[1759983854371,0.1183164,122320.0,122310.0,3.38660354]
[1759983854773,0.1183164,122320.0,122310.0,3.38668354]
[1759983855078,0.1183164,122320.0,122310.0,2.64600354]
[1759983855280,0.1183164,122320.0,122310.0,3.38668354]
[1759983855677,0.1183164,122320.0,122310.0,3.38664354]
[1759983856284,0.1183164,122320.0,122310.0,3.46838654]
[1759983857081,0.1183164,122320.0,122310.0,2.72774654]
[1759983857281,0.1183164,122320.0,122310.0,3.46834654]
[1759983858782,0.1183164,122320.0,122310.0,3.230023]
[1759983858975,0.77486604,122320.0,122310.0,0.005]
[1759983859175,0.75663994,122320.0,122310.0,0.005]
[1759983859383,0.77487198,122320.0,122310.0,0.7456]
[1759983859885,0.77487198,122320.0,122310.0,0.98392354]
[1759983860183,0.77487198,122320.0,122310.0,0.7456]
[1759983860383,0.77487198,122320.0,122310.0,0.98392354]
[1759983860983,0.53654844,122320.0,122310.0,0.98392354]
[1759983861288,0.53654844,122320.0,122310.0,0.32506664]
[1759983861586,0.53654844,122320.0,122310.0,1.06566664]
[1759983863683,0.53654844,122320.0,122310.0,1.06562664]
[1759983864385,0.53654844,122320.0,122310.0,1.42642664]
[1759983865274,0.05481204,122320.0,122310.0,1.42642664]
[1759983865479,0.05481204,122320.0,122310.0,1.66463018]
[1759983865883,0.05481204,122320.0,122310.0,1.66483018]
[1759983867081,0.03161204,122320.0,122310.0,1.66483018]
[1759983867278,0.01338,122320.0,122310.0,2.06483018]
[1759983867674,0.01338,122330.0,122320.0,0.0817364]
[1759983867987,0.01338,122330.0,122320.0,1.13889485]
[1759983868179,0.01338,122330.0,122320.0,1.87973485]
[1759983868987,0.01338,122330.0,122320.0,2.27969485]
[1759983869387,0.01338,122330.0,122320.0,2.28001485]
[1759983870286,0.01338,122330.0,122320.0,2.28201485]
[1759983871186,0.01338,122340.0,122330.0,0.0817297]
[1759983871484,0.01338,122340.0,122330.0,1.89854032]
[1759983871690,0.01338,122340.0,122330.0,1.66021678]
[1759983871889,0.01338,122340.0,122330.0,2.96113678]
[1759983872078,0.01338,122340.0,122330.0,3.70213678]
[1759983872986,0.0137,122350.0,122330.0,2.96113678]
[1759983873288,0.0137,122350.0,122340.0,1.89845362]
[1759983873588,0.0137,122350.0,122340.0,1.15749362]
[1759983873789,0.0137,122350.0,122340.0,1.89841362]
[1759983874186,0.0147,122350.0,122340.0,1.89841362]
[1759983874689,0.0147,122350.0,122340.0,1.15749362]
[1759983874890,0.0147,122350.0,122340.0,3.94049362]
[1759983875090,0.0147,122350.0,122340.0,3.19933362]
[1759983875288,0.0147,122350.0,122340.0,3.94045362]
[1759983877893,0.0147,122350.0,122340.0,4.00571206]
[1759983879095,0.0147,122350.0,122340.0,3.26471206]
[1759983879296,0.0147,122350.0,122340.0,4.00563206]
[1759983879595,0.0147,122350.0,122340.0,3.26471206]
[1759983879794,0.0147,122350.0,122340.0,4.00563206]
[1759983880195,0.0147,122350.0,122340.0,3.26471206]
[1759983880498,0.0147,122350.0,122340.0,4.00559206]
[1759983883994,0.001,122350.0,122340.0,4.00559206]
[1759983887090,0.001,122350.0,122340.0,4.00491206]
[1759983892708,0.001,122350.0,122340.0,1.22287206]
[1759983892914,0.001,122350.0,122340.0,4.00459206]
[1759983893107,0.01433,122350.0,122340.0,4.00459206]
[1759983893508,0.01433,122350.0,122340.0,1.22287206]
[1759983893800,0.01433,122350.0,122340.0,4.00455206]
[1759983894308,0.001,122350.0,122340.0,4.00455206]
[1759983894506,0.0137,122370.0,122360.0,0.0817096]
[1759983894704,0.0137,122370.0,122360.0,4.29992022]
[1759983895606,0.0137,122370.0,122360.0,1.51828022]
[1759983895910,0.0137,122370.0,122360.0,4.29992022]
[1759983895911,0.0167,122370.0,122360.0,4.29992022]
[1759983896411,0.03493347,122370.0,122360.0,4.29992022]
[1759983897706,0.03494578,122370.0,122360.0,4.29992022]
[1759983897918,0.03494578,122370.0,122360.0,4.30794309]
[1759983900521,0.03494578,122370.0,122360.0,4.28933892]
[1759983900819,0.03494578,122370.0,122360.0,4.29021892]
[1759983901919,0.03494578,122370.0,122360.0,4.21023212]
[1759983902718,0.03494578,122370.0,122360.0,1.42771212]
[1759983902920,0.03494578,122370.0,122360.0,4.21011212]
[1759983904512,0.03494578,122370.0,122360.0,1.42771212]
[1759983904717,0.03494578,122370.0,122360.0,4.21003212]
[1759983905812,0.03494578,122370.0,122360.0,1.42771212]
[1759983906018,0.03494578,122370.0,122360.0,4.20995212]
[1759983906416,0.03494578,122370.0,122360.0,4.20987212]
[1759983906819,0.03494578,122370.0,122360.0,1.42771212]
[1759983907013,0.03494578,122370.0,122360.0,4.20979212]
[1759983907213,0.03494578,122370.0,122360.0,4.47769212]
[1759983908120,0.03494578,122370.0,122360.0,1.69561212]
[1759983908320,0.03494578,122370.0,122360.0,4.16020021]
[1759983908515,0.11664878,122370.0,122360.0,4.14159581]
[1759983908710,0.11664878,122370.0,122360.0,1.35951581]
[1759983908916,0.11664878,122370.0,122360.0,4.14155581]
[1759983909317,0.11664878,122370.0,122360.0,4.45904772]
[1759983909518,0.11664878,122370.0,122360.0,3.40075581]
[1759983909814,0.51664878,122370.0,122360.0,4.08895191]
[1759983910121,0.51664878,122370.0,122360.0,3.03074]
[1759983910320,0.51664878,122370.0,122360.0,3.34823191]
[1759983910521,0.51664878,122370.0,122360.0,4.08919191]
[1759983911619,0.54776948,122370.0,122360.0,0.9895]
[1759983911819,0.85687069,122370.0,122360.0,2.6699]
[1759983912123,0.53937878,122370.0,122360.0,3.03043006]
[1759983912424,0.53937878,122370.0,122360.0,0.24827006]
[1759983912615,0.53937878,122370.0,122360.0,0.98919006]
[1759983912816,0.53937878,122370.0,122360.0,0.24827006]
[1759983913024,0.53937878,122370.0,122360.0,0.98915006]
[1759983913226,0.53937878,122370.0,122360.0,0.74088]
[1759983913728,0.1177696,122360.0,122350.0,0.67829191]
[1759983913921,0.85350729,122360.0,122350.0,2.40204]
[1759983914226,0.53601538,122360.0,122350.0,0.3608]
[1759983914425,0.53601538,122360.0,122350.0,1.1018]
[1759983914824,0.53701538,122360.0,122350.0,1.1018]
[1759983915327,0.53701538,122360.0,122350.0,0.67829191]
[1759983915626,0.53701538,122360.0,122350.0,1.10176]
[1759983916529,0.53701538,122360.0,122350.0,1.08315129]
[1759983916921,0.53701538,122360.0,122350.0,0.42390759]
[1759983917126,0.53701538,122360.0,122350.0,0.34219129]
[1759983917326,0.53701538,122360.0,122350.0,1.4006032]
[1759983920533,0.53701538,122360.0,122350.0,0.6596832]
[1759983920827,0.095053,122340.0,122330.0,0.99202421]
[1759983921022,0.117783,122340.0,122330.0,3.46049191]
[1759983921221,0.117783,122340.0,122330.0,3.54222101]
[1759983921521,0.03606,122340.0,122330.0,2.80142101]
[1759983921726,0.117783,122340.0,122330.0,3.54222101]
[1759983921929,0.117783,122340.0,122330.0,3.54322101]
[1759983922831,0.117783,122340.0,122330.0,2.80242101]
[1759983923027,0.117783,122340.0,122330.0,3.54326101]
[1759983924633,0.117783,122340.0,122330.0,2.80242101]
[1759983924931,0.117783,122340.0,122330.0,3.54326101]
[1759983925333,0.117783,122340.0,122330.0,3.55147404]
[1759983925932,0.117783,122340.0,122330.0,2.81063404]
[1759983926134,0.117783,122340.0,122330.0,3.55135404]
[1759983927031,0.117783,122340.0,122330.0,2.81063404]
[1759983927333,0.117783,122340.0,122330.0,3.55131404]
[1759983929731,0.117783,122340.0,122330.0,3.23382213]
[1759983929933,0.117783,122340.0,122330.0,2.81063404]
[1759983930232,0.117783,122340.0,122330.0,3.55123404]
[1759983930734,0.117783,122340.0,122330.0,2.81063404]
[1759983931032,0.117783,122340.0,122330.0,3.55135404]
[1759983931532,0.117783,122340.0,122330.0,2.81079404]
[1759983931734,0.117783,122340.0,122330.0,3.55135404]
[1759983932436,0.117783,122340.0,122330.0,2.81079404]
[1759983932734,0.03606,122340.0,122330.0,3.55131404]
[1759983933133,0.03606,122340.0,122330.0,2.81079404]
[1759983933334,0.03606,122340.0,122330.0,3.55131404]
[1759983933734,0.117783,122340.0,122330.0,2.81079404]
[1759983933934,0.117783,122340.0,122330.0,3.55127404]
[1759983937137,0.117783,122340.0,122330.0,2.81079404]
[1759983937338,0.03606,122340.0,122330.0,2.81079404]
[1759983937540,0.01333,122340.0,122330.0,3.55115404]
[1759983938631,0.03157452,122340.0,122330.0,3.55115404]
[1759983940639,0.03157452,122340.0,122330.0,2.81079404]
[1759983940937,0.03157452,122340.0,122330.0,3.55103404]
[1759983941137,0.11329752,122340.0,122330.0,3.55103404]
[1759983941437,0.11329752,122340.0,122330.0,3.23354213]
[1759983941738,0.13436752,122340.0,122330.0,3.55107404]
[1759983941938,0.05264452,122340.0,122330.0,3.55107404]
[1759983949444,0.05264452,122340.0,122330.0,2.81087404]
[1759983949648,0.05264452,122340.0,122330.0,3.55083404]
[1759983951438,0.05264452,122340.0,122330.0,2.81087404]
[1759983951640,0.05264452,122340.0,122330.0,3.55083404]
[1759983952743,0.05264452,122340.0,122330.0,3.17167404]
[1759983952945,0.05264452,122340.0,122330.0,3.91159404]
[1759983960150,0.13436752,122340.0,122330.0,3.17167404]
[1759983960351,0.13436752,122340.0,122330.0,3.91147404]
[1759983961748,0.13436752,122340.0,122330.0,3.16350161]
[1759983962048,0.13436752,122340.0,122330.0,0.60014322]
[1759983962049,0.37271074,122340.0,122330.0,0.60014322]
[1759983962351,0.13436752,122340.0,122330.0,3.46331292]
[1759983962554,0.37271074,122340.0,122330.0,3.46331292]
[1759983962851,0.13436752,122340.0,122330.0,3.46331292]
[1759983963555,0.13436752,122340.0,122330.0,3.44470215]
[1759983963853,0.13436752,122340.0,122330.0,3.44474215]
[1759983964448,0.03157452,122340.0,122330.0,2.94332537]
[1759983964649,0.03157452,122340.0,122330.0,3.68308537]
[1759983965255,0.03157452,122340.0,122330.0,3.94246859]
[1759983965457,0.03157452,122340.0,122330.0,4.68230859]
[1759983965750,0.01333,122340.0,122330.0,4.68230859]
[1759983965951,0.01333,122340.0,122330.0,4.68430859]
[1759983966153,0.01333,122340.0,122330.0,4.44596537]
[1759983966358,0.0316036,122340.0,122330.0,4.68430859]
[1759983966656,0.01333,122340.0,122330.0,4.68430859]
[1759983967654,0.01333,122350.0,122340.0,0.081723]
[1759983967848,0.01333,122350.0,122340.0,1.89735266]
[1759983968560,0.01333,122350.0,122340.0,2.29735266]
[1759983972857,0.01333,122350.0,122340.0,1.55755266]
[1759983973159,0.01333,122350.0,122340.0,4.33911266]
[1759983974962,0.01333,122360.0,122350.0,0.0817163]
[1759983975165,0.01333,122360.0,122350.0,1.65908274]
[1759983975963,0.01433,122360.0,122350.0,1.65908274]
[1759983977565,0.001,122360.0,122350.0,1.55754596]
[1759983977763,0.001,122360.0,122350.0,2.29746596]
[1759983986865,0.001,122360.0,122350.0,1.55754596]
[1759983987070,0.01397,122360.0,122350.0,4.10020274]
[1759983989475,0.01397,122360.0,122350.0,1.31920274]
[1759983989675,0.01397,122360.0,122350.0,4.10016274]
[1759983991281,0.01397,122360.0,122350.0,4.33850596]
[1759983991978,0.01397,122360.0,122350.0,4.33842596]
[1759983992380,0.01397,122360.0,122350.0,1.55754596]
[1759983992583,0.01397,122360.0,122350.0,4.33842596]
[1759983992782,0.01397,122360.0,122350.0,4.10008274]
[1759983993478,0.01397,122360.0,122350.0,1.31920274]
[1759983993679,0.01397,122360.0,122350.0,4.10004274]
[1759983994782,0.01397,122360.0,122350.0,0.83748644]
[1759983994783,0.0956796,122360.0,122350.0,0.83748644]
[1759983994979,0.5171196,122360.0,122350.0,2.40204]
[1759983995180,0.53534581,122360.0,122350.0,3.46169952]
[1759983995482,0.53534581,122360.0,122350.0,0.59914322]
[1759983995677,0.53534581,122360.0,122350.0,2.64038322]
[1759983996084,0.53534581,122360.0,122350.0,3.38002322]
[1759983997179,0.53534581,122360.0,122350.0,0.59914322]
[1759983997378,0.53534581,122360.0,122350.0,3.37998322]
[1759983998283,0.53534581,122360.0,122350.0,3.46169952]
[1759983998683,0.53534581,122360.0,122350.0,2.72209952]
[1759983998877,0.53534581,122360.0,122350.0,3.46169952]
[1759984002288,0.53534581,122360.0,122350.0,3.2233563]
[1759984002289,0.13534581,122360.0,122350.0,3.2233563]
[1759984002491,0.13534581,122360.0,122350.0,3.46169952]
[1759984004793,0.13534581,122360.0,122350.0,0.68085952]
[1759984004983,0.53534581,122360.0,122350.0,2.72225952]
[1759984005183,0.53534581,122360.0,122350.0,3.46189952]
[1759984005388,0.53534581,122360.0,122350.0,2.72225952]
[1759984005688,0.53534581,122360.0,122350.0,3.46189952]
[1759984005992,0.53534581,122360.0,122350.0,0.68085952]
[1759984006185,0.53534581,122360.0,122350.0,2.72229952]
[1759984006386,0.53534581,122360.0,122350.0,3.46197952]
[1759984010195,0.53534581,122360.0,122350.0,3.44337207]
[1759984010594,0.53534581,122360.0,122350.0,0.66225207]
[1759984010794,0.53534581,122360.0,122350.0,3.44337207]
[1759984011795,0.53534581,122360.0,122350.0,3.46197952]
[1759984014304,0.53534581,122360.0,122350.0,3.10117952]
[1759984014599,0.53534581,122360.0,122350.0,3.38026322]
[1759984016895,0.53534581,122360.0,122350.0,0.59914322]
[1759984017100,0.53534581,122360.0,122350.0,3.38030322]
[1759984019801,0.77368903,122360.0,122350.0,0.59914322]
[1759984020000,0.37368903,122360.0,122350.0,0.23834322]
[1759984020200,0.37368903,122360.0,122350.0,0.97802322]
[1759984021999,0.37368903,122360.0,122350.0,0.73968]
[1759984022200,0.37368903,122360.0,122350.0,0.97802322]
[1759984022894,0.37368903,122360.0,122340.0,2.64062322]
[1759984022895,0.1167163,122350.0,122340.0,2.64062322]
[1759984023095,0.13494251,122350.0,122340.0,3.61864644]
[1759984023906,0.13494251,122350.0,122340.0,3.4596743]
[1759984030807,0.13494251,122350.0,122340.0,0.6785143]
[1759984031007,0.13494251,122350.0,122340.0,3.4597143]
[1759984035909,0.13494251,122350.0,122340.0,0.6785143]
[1759984036209,0.13494251,122350.0,122340.0,3.4596743]
[1759984039110,0.13494251,122350.0,122340.0,0.6785143]
[1759984039310,0.13494251,122350.0,122340.0,3.4596743]
[1759984040808,0.13494251,122350.0,122340.0,2.8017573]
[1759984041013,0.13494251,122350.0,122340.0,3.5413973]
[1759984041513,0.11378251,122350.0,122340.0,3.5413973]
[1759984042019,0.11378251,122350.0,122340.0,3.2017573]
[1759984042020,0.03206621,122350.0,122340.0,3.2017573]
[1759984042311,0.01384,122350.0,122340.0,3.9413973]
[1759984047714,0.01384,122350.0,122340.0,3.5805973]
[1759984047916,0.01384,122350.0,122340.0,4.3021973]
[1759984048523,0.01297,122360.0,122350.0,0.0817163]
[1759984048716,0.01297,122360.0,122350.0,0.7602306]
[1759984049011,0.01297,122360.0,122350.0,1.0779449]
[1759984049612,0.01297,122360.0,122350.0,0.7602306]
[1759984049811,0.01397,122360.0,122350.0,0.7602306]
[1759984051018,0.001,122360.0,122350.0,0.8425163]
[1759984051217,0.001,122360.0,122350.0,2.2175449]
[1759984054619,0.001,122360.0,122350.0,2.2175049]
[1759984054821,0.001,122360.0,122350.0,1.4779449]
[1759984055019,0.001,122360.0,122350.0,2.2175049]
[1759984056921,0.001,122360.0,122350.0,1.4779449]
[1759984057123,0.001,122360.0,122350.0,4.2588249]
[1759984061226,0.001,122360.0,122350.0,1.4779449]
[1759984061421,0.01421,122360.0,122350.0,4.2587049]
[1759984061921,0.01421,122360.0,122350.0,1.4779449]
[1759984062121,0.01421,122360.0,122350.0,2.8014706]
[1759984062321,0.01421,122360.0,122350.0,0.7602306]
[1759984062526,0.01421,122360.0,122350.0,3.5409906]
[1759984063626,0.01421,122360.0,122350.0,2.8014706]
[1759984063830,0.01421,122360.0,122350.0,3.5409506]
[1759984064428,0.01321,122360.0,122350.0,3.5409506]
[1759984064624,0.01321,122360.0,122350.0,3.5419506]
[1759984066031,0.01321,122360.0,122350.0,0.7612306]
[1759984066328,0.01321,122360.0,122350.0,3.5419106]
[1759984066734,0.01321,122360.0,122350.0,0.7612306]
[1759984066935,0.01321,122360.0,122350.0,3.5418706]
[1759984069133,0.0949196,122360.0,122350.0,3.5418706]
[1759984071830,0.01321,122360.0,122350.0,3.5418706]
[1759984074735,0.01321,122360.0,122350.0,3.1201049]
[1759984074936,0.01321,122360.0,122350.0,3.8595449]
[1759984076532,0.0949196,122360.0,122350.0,3.8595449]
[1759984077437,0.01321,122360.0,122350.0,3.5418306]
[1759984077737,0.01321,122360.0,122350.0,3.8595449]
[1759984079439,0.01321,122360.0,122350.0,3.5418306]
[1759984082838,0.01321,122360.0,122350.0,0.4435163]
[1759984083135,0.11323801,122360.0,122350.0,3.5417506]
[1759984083939,0.11323705,122360.0,122350.0,3.70040298]
[1759984085241,0.0949196,122360.0,122350.0,3.70040298]
[1759984085436,0.0949196,122360.0,122350.0,3.96830298]
[1759984086749,0.01321,122360.0,122350.0,3.96830298]
[1759984087442,0.0949196,122360.0,122350.0,3.96830298]
[1759984089146,0.0949196,122360.0,122350.0,3.14718668]
[1759984089348,0.0949196,122360.0,122350.0,3.96830298]
[1759984092647,0.0949196,122360.0,122350.0,3.22890298]
[1759984092944,0.0949196,122360.0,122350.0,3.96830298]
[1759984093947,0.0949196,122360.0,122350.0,3.4919363]
[1759984094152,0.0949196,122360.0,122350.0,3.96830298]
[1759984094553,0.0949196,122360.0,122350.0,3.88658668]
[1759984095254,0.0949196,122360.0,122350.0,3.14718668]
[1759984095449,0.0949196,122360.0,122350.0,3.96830298]
[1759984096652,1.35485628,122360.0,122350.0,0.001]
[1759984096957,1.37318683,122360.0,122350.0,0.00016275]
[1759984097257,1.37318683,122360.0,122350.0,0.73972275]
[1759984098858,1.38150309,122360.0,122350.0,0.73972275]
[1759984099557,1.38150309,122360.0,122350.0,0.00016275]
[1759984099758,1.38150309,122360.0,122350.0,0.73976275]
[1759984105058,1.37318683,122360.0,122350.0,0.73976275]
[1759984105263,0.13602015,122360.0,122350.0,0.23834609]
[1759984105460,0.13602015,122360.0,122350.0,0.97782609]
[1759984113868,0.13602015,122360.0,122350.0,0.73964275]
[1759984114167,0.13602015,122360.0,122350.0,0.97782609]
[1759984114463,0.13602015,122360.0,122350.0,1.33862609]
[1759984114670,0.13602015,122360.0,122350.0,1.65856573]
[1759984114868,0.11325015,122360.0,122350.0,1.65856573]
[1759984115169,0.0949196,122360.0,122350.0,1.65856573]
[1759984115871,0.0949196,122360.0,122350.0,1.42038239]
[1759984116163,0.0949196,122360.0,122350.0,0.68086239]
[1759984116369,0.1159596,122360.0,122350.0,1.42058239]
[1759984119372,0.13425015,122360.0,122350.0,1.42058239]
[1759984119770,0.13425015,122360.0,122350.0,1.33886609]
[1759984120873,0.13425015,122360.0,122350.0,0.59914609]
[1759984121073,0.13425015,122360.0,122350.0,1.33878609]
[1759984121471,0.13425015,122360.0,122350.0,3.38034609]
[1759984121764,0.13425015,122360.0,122350.0,3.46206239]
[1759984131878,0.11321015,122360.0,122350.0,3.70012573]
[1759984132882,0.11321015,122360.0,122350.0,2.96060573]
[1759984133081,0.11321015,122360.0,122350.0,3.70012573]
[1759984136386,0.01829055,122360.0,122350.0,3.59878907]
[1759984136684,0.1137458,122370.0,122360.0,0.0817096]
[1759984136884,0.1137458,122370.0,122360.0,3.70043628]
[1759984139182,0.1137458,122370.0,122360.0,0.91887628]
[1759984139183,0.1360858,122370.0,122360.0,0.91887628]
[1759984139389,0.1360858,122370.0,122360.0,3.70027628]
[1759984139795,0.1360858,122370.0,122360.0,0.9839434]
[1759984140090,0.1360858,122370.0,122360.0,3.7653034]
[1759984140488,0.37426914,122370.0,122360.0,2.46730712]
[1759984140686,0.1360858,122370.0,122360.0,0.66405046]
[1759984140893,0.1360858,122370.0,122360.0,2.70545046]
[1759984141092,0.1360858,122370.0,122360.0,3.38030334]
[1759984141294,0.1360858,122370.0,122360.0,2.64038334]